fUSD/lending_fUSD_20250611
["ID","MTS","AMOUNT","RATE_DAILY","PERIOD"]
[365457139,1749681047843,-490.0,0.00019178,2]
[365457140,1749681047853,-480.0,0.00019178,2]
[365457141,1749681047863,-917.9,0.00019178,2]
[365457142,1749681047875,-490.0,0.00019178,2]
[365457143,1749681047884,-1409.81,0.00019178,2]
[365457144,1749681047894,-490.0,0.00019178,2]
[365457145,1749681047904,-3019.45,0.00019178,2]
[365457146,1749681047913,-490.0,0.00019178,2]
[365457147,1749681047922,-490.0,0.00019178,2]
[365457148,1749681047931,-490.0,0.00019178,2]
[365457149,1749681047941,-806.37,0.00019178,2]
[365457150,1749681047951,-1023.95,0.00019178,2]
[365457151,1749681047960,-480.0,0.00019178,2]
[365457152,1749681047969,-894.43,0.00019178,2]
[365457153,1749681047978,-359.2239268,0.00019178,2]
[365457154,1749681047988,-490.0,0.00019178,2]
[365457155,1749681047997,-490.0,0.00019178,2]
[365457156,1749681048007,-490.0,0.00019178,2]
[365457157,1749681048016,-490.0,0.00019178,2]
[365457158,1749681048026,-490.0,0.00019178,2]
[365457159,1749681048036,-490.0,0.00019178,2]
[365457160,1749681048045,-490.0,0.00019178,2]
[365457161,1749681048055,-1493.56,0.00019178,2]
[365457162,1749681048065,-442.20109022,0.00019178,2]
[365457163,1749681048075,-3038.48,0.00019178,2]
[365457164,1749681048084,-490.0,0.00019178,2]
[365457165,1749681048095,-490.0,0.00019178,2]
[365457166,1749681048106,-973.159661,0.00019178,2]
[365457167,1749681048116,-480.0,0.00019178,2]
[365457168,1749681048129,-490.0,0.00019178,2]
[365457169,1749681048138,-490.0,0.00019178,2]
[365457170,1749681048148,-744.11,0.00019178,2]
[365457171,1749681048158,-490.0,0.00019178,2]
[365457172,1749681048168,-490.0,0.00019178,2]
[365457173,1749681048178,-265.36919536,0.00019178,2]
[365457174,1749681048187,-1851.3,0.00019178,2]
[365457175,1749681048197,-490.0,0.00019178,2]
[365457176,1749681048207,-490.0,0.00019178,2]
[365457177,1749681048216,-5490.07,0.00019178,2]
[365457178,1749681048226,-490.0,0.00019178,2]
[365457179,1749681048236,-490.0,0.00019178,2]
[365457180,1749681048246,-543.22,0.00019178,2]
[365457181,1749681048256,-490.0,0.00019178,2]
[365457182,1749681048266,-490.0,0.00019178,2]
[365457183,1749681048276,-490.0,0.00019178,2]
[365457184,1749681048285,-490.0,0.00019178,2]
[365457185,1749681048295,-545.23,0.00019178,2]
[365457186,1749681048305,-490.0,0.00019178,2]
[365457187,1749681048314,-490.0,0.00019178,2]
[365457188,1749681048324,-712.69,0.00019178,2]
[365457189,1749681048334,-490.0,0.00019178,2]
[365457190,1749681048344,-151.0,0.00019178,2]
[365457191,1749681048358,-178.66,0.00019178,2]
[365457192,1749681048367,-305.62,0.00019178,2]
[365457193,1749681048382,-1163.78,0.00019178,2]
[365457194,1749681048392,-328.43,0.00019178,2]
[365457195,1749681048402,-170.71,0.00019178,2]
[365457196,1749681048412,-300.0,0.00019178,2]
[365457197,1749681048422,-905.07050405,0.00019189,2]
[365457198,1749681048434,-5735.87293742,0.00019195,2]
[365457199,1749681048444,-1100.0,0.000192,7]
[365457200,1749681048454,-632.33,0.000192,2]
[365457201,1749681048464,-632.33,0.00019206,2]
[365457202,1749681048474,-1037.7176603,0.0001921,2]
[365457203,1749681048484,-905.07050405,0.00019236,2]
[365457204,1749681048495,-1037.7176603,0.00019245,2]
[365457205,1749681048504,-2983.70592984,0.00019261,2]
[365457206,1749681048514,-1037.7176603,0.00019279,2]
[365457207,1749681048523,-905.07050405,0.00019283,2]
[365457208,1749681048534,-5735.87293742,0.00019296,2]
[365457209,1749681048544,-1500.0,0.000193,7]
[365457210,1749681048553,-1037.7176603,0.00019314,2]
[365457211,1749681048563,-905.07050405,0.0001933,2]
[365457212,1749681048572,-500.0,0.00019341,2]
[365457213,1749681048582,-500.0,0.00019341,2]
[365457214,1749681048592,-500.0,0.00019341,2]
[365457215,1749681048602,-4495.12,0.00019341,2]
[365457216,1749681048612,-515.09913323,0.00019342,2]
[365457217,1749681048622,-490.0,0.00019342,2]
[365457218,1749681048635,-490.0,0.00019342,2]
[365457219,1749681048645,-490.0,0.00019342,2]
[365457220,1749681048655,-490.0,0.00019342,2]
[365457221,1749681048666,-490.0,0.00019342,2]
[365457222,1749681048675,-228.33333066,0.00019342,2]
[365457223,1749681048685,-490.0,0.00019342,2]
[365457224,1749681048695,-490.0,0.00019342,2]
[365457225,1749681048705,-470.0,0.00019342,2]
[365457226,1749681048714,-490.0,0.00019342,2]
[365457227,1749681048724,-490.0,0.00019342,2]
[365457228,1749681048734,-490.0,0.00019342,2]
[365457229,1749681048743,-480.0,0.00019342,2]
[365457230,1749681048753,-490.0,0.00019342,2]
[365457231,1749681048763,-480.0,0.00019342,2]
[365457232,1749681048772,-464.63201577,0.00019342,2]
[365457233,1749681048782,-490.0,0.00019342,2]
[365457234,1749681048791,-490.0,0.00019342,2]
[365457235,1749681048801,-416.66,0.00019342,2]
[365457236,1749681048811,-490.0,0.00019342,2]
[365457237,1749681048820,-490.0,0.00019342,2]
[365457238,1749681048830,-490.0,0.00019342,2]
[365457239,1749681048839,-490.0,0.00019342,2]
[365457240,1749681048848,-490.0,0.00019342,2]
[365457241,1749681048858,-490.0,0.00019342,2]
[365457242,1749681048868,-490.0,0.00019342,2]
[365457243,1749681048880,-490.0,0.00019342,2]
[365457244,1749681048890,-490.0,0.00019342,2]
[365457245,1749681048899,-490.0,0.00019342,2]
[365457246,1749681048909,-490.0,0.00019342,2]
[365457247,1749681048919,-490.0,0.00019342,2]
[365457248,1749681048928,-490.0,0.00019342,2]
[365457249,1749681048937,-490.0,0.00019342,2]
[365457250,1749681048947,-490.0,0.00019342,2]
[365457251,1749681048956,-490.0,0.00019342,2]
[365457252,1749681048966,-490.0,0.00019342,2]
[365457253,1749681048976,-490.0,0.00019342,2]
[365457254,1749681048986,-490.0,0.00019342,2]
[365457255,1749681048996,-490.0,0.00019342,2]
[365457256,1749681049006,-490.0,0.00019342,2]
[365457257,1749681049016,-490.0,0.00019342,2]
[365457258,1749681049026,-490.0,0.00019342,2]
[365457259,1749681049036,-490.0,0.00019342,2]
[365457260,1749681049046,-490.0,0.00019342,2]
[365457261,1749681049056,-490.0,0.00019342,2]
[365457262,1749681049066,-490.0,0.00019342,2]
[365457263,1749681049076,-490.0,0.00019342,2]
[365457264,1749681049087,-490.0,0.00019342,2]
[365457265,1749681049096,-480.0,0.00019342,2]
[365457266,1749681049106,-490.0,0.00019342,2]
[365457267,1749681049115,-490.0,0.00019342,2]
[365457268,1749681049126,-490.0,0.00019342,2]
[365457269,1749681049136,-490.0,0.00019342,2]
[365457270,1749681049146,-490.0,0.00019342,2]
[365457271,1749681049156,-490.0,0.00019342,2]
[365457272,1749681049167,-490.0,0.00019342,2]
[365457273,1749681049177,-490.0,0.00019342,2]
[365457274,1749681049187,-480.0,0.00019342,2]
[365457275,1749681049197,-490.0,0.00019342,2]
[365457276,1749681049207,-490.0,0.00019342,2]
[365457277,1749681049217,-490.0,0.00019342,2]
[365457278,1749681049227,-577.0,0.00019342,2]
[365457279,1749681049237,-490.0,0.00019342,2]
[365457280,1749681049247,-470.0,0.00019342,2]
[365457281,1749681049257,-460.0,0.00019342,2]
[365457282,1749681049267,-490.0,0.00019342,2]
[365457283,1749681049277,-490.0,0.00019342,2]
[365457284,1749681049287,-490.0,0.00019342,2]
[365457285,1749681049296,-490.0,0.00019342,2]
[365457286,1749681049306,-490.0,0.00019342,2]
[365457287,1749681049316,-920.56,0.00019342,2]
[365457288,1749681049326,-633.85,0.00019342,2]
[365457289,1749681049336,-490.0,0.00019342,2]
[365457290,1749681049345,-470.0,0.00019342,2]
[365457291,1749681049356,-490.0,0.00019342,2]
[365457292,1749681049367,-490.0,0.00019342,2]
[365457293,1749681049378,-490.0,0.00019342,2]
[365457294,1749681049388,-490.0,0.00019342,2]
[365457295,1749681049398,-490.0,0.00019342,2]
[365457296,1749681049408,-490.0,0.00019342,2]
[365457297,1749681049418,-490.0,0.00019342,2]
[365457298,1749681049427,-490.0,0.00019342,2]
[365457299,1749681049437,-490.0,0.00019342,2]
[365457300,1749681049447,-490.0,0.00019342,2]
[365457301,1749681049457,-743.12,0.00019342,2]
[365457302,1749681049467,-582.95,0.00019342,2]
[365457303,1749681049477,-490.0,0.00019342,2]
[365457304,1749681049487,-345.40257588,0.00019342,2]
[365457305,1749681049496,-490.0,0.00019342,2]
[365457306,1749681049507,-490.0,0.00019342,2]
[365457307,1749681049516,-430.0,0.00019342,2]
[365457308,1749681049526,-639.54,0.00019342,2]
[365457309,1749681049536,-698.94,0.00019342,2]
[365457310,1749681049546,-490.0,0.00019342,2]
[365457311,1749681049555,-490.0,0.00019342,2]
[365457312,1749681049565,-490.0,0.00019342,2]
[365457313,1749681049575,-490.0,0.00019342,2]
[365457314,1749681049584,-490.0,0.00019342,2]
[365457315,1749681049594,-490.0,0.00019342,2]
[365457316,1749681049603,-460.0,0.00019342,2]
[365457317,1749681049613,-490.0,0.00019342,2]
[365457318,1749681049622,-490.0,0.00019342,2]
[365457319,1749681049633,-490.0,0.00019342,2]
[365457320,1749681049643,-490.0,0.00019342,2]
[365457321,1749681049653,-564.97,0.00019342,2]
[365457322,1749681049663,-490.0,0.00019342,2]
[365457323,1749681049672,-490.0,0.00019342,2]
[365457324,1749681049682,-490.0,0.00019342,2]
[365457325,1749681049692,-490.0,0.00019342,2]
[365457326,1749681049702,-333.4174214,0.00019342,2]
[365457327,1749681049712,-360.0,0.00019342,2]
[365457328,1749681049721,-1059.95,0.00019342,2]
[365457329,1749681049731,-490.0,0.00019342,2]
[365457330,1749681049740,-490.0,0.00019342,2]
[365457331,1749681049750,-490.0,0.00019342,2]
[365457332,1749681049759,-490.0,0.00019342,2]
[365457333,1749681049768,-490.0,0.00019342,2]
[365457334,1749681049778,-490.0,0.00019342,2]
[365457335,1749681049787,-490.0,0.00019342,2]
[365457336,1749681049797,-490.0,0.00019342,2]
[365457337,1749681049806,-490.0,0.00019342,2]
[365457338,1749681049816,-490.0,0.00019342,2]
[365457339,1749681049826,-490.0,0.00019342,2]
[365457340,1749681049835,-233.7884943,0.00019342,2]
[365457341,1749681049845,-490.0,0.00019342,2]
[365457342,1749681049855,-490.0,0.00019342,2]
[365457343,1749681049864,-1170.28,0.00019342,2]
[365457344,1749681049875,-490.0,0.00019342,2]
[365457345,1749681049885,-490.0,0.00019342,2]
[365457346,1749681049894,-490.0,0.00019342,2]
[365457347,1749681049905,-556.35,0.00019342,2]
[365457348,1749681049916,-480.0,0.00019342,2]
[365457349,1749681049928,-490.0,0.00019342,2]
[365457350,1749681049939,-490.0,0.00019342,2]
[365457351,1749681049948,-490.0,0.00019342,2]
[365457352,1749681049959,-490.0,0.00019342,2]
[365457353,1749681049969,-490.0,0.00019342,2]
[365457354,1749681049979,-490.0,0.00019342,2]
[365457355,1749681049989,-837.36,0.00019342,2]
[365457356,1749681049999,-618.71,0.00019342,2]
[365457357,1749681050009,-559.78,0.00019342,2]
[365457358,1749681050018,-677.05,0.00019342,2]
[365457359,1749681050027,-421.30142663,0.00019342,2]
[365457360,1749681050037,-490.0,0.00019342,2]
[365457361,1749681050048,-600.0831739,0.00019342,2]
[365457362,1749681050057,-490.0,0.00019342,2]
[365457363,1749681050067,-490.0,0.00019342,2]
[365457364,1749681050077,-490.0,0.00019342,2]
[365457365,1749681050087,-490.0,0.00019342,2]
[365457366,1749681050099,-490.0,0.00019342,2]
[365457367,1749681050109,-748.31,0.00019342,2]
[365457368,1749681050120,-490.0,0.00019342,2]
[365457369,1749681050131,-490.0,0.00019342,2]
[365457370,1749681050141,-430.0,0.00019342,2]
[365457371,1749681050151,-609.06,0.00019342,2]
[365457372,1749681050161,-490.0,0.00019342,2]
[365457373,1749681050171,-565.4,0.00019342,2]
[365457374,1749681050181,-490.0,0.00019342,2]
[365457375,1749681050191,-706.85,0.00019342,2]
[365457376,1749681050201,-683.53,0.00019342,2]
[365457377,1749681050211,-490.0,0.00019342,2]
[365457378,1749681050220,-480.0,0.00019342,2]
[365457379,1749681050230,-480.0,0.00019342,2]
[365457380,1749681050239,-490.0,0.00019342,2]
[365457381,1749681050249,-490.0,0.00019342,2]
[365457382,1749681050259,-159.65,0.00019342,2]
[365457383,1749681050268,-490.0,0.00019342,2]
[365457384,1749681050278,-480.0,0.00019342,2]
[365457385,1749681050287,-490.0,0.00019342,2]
[365457386,1749681050297,-490.0,0.00019342,2]
[365457387,1749681050307,-490.0,0.00019342,2]
[365457388,1749681050317,-490.0,0.00019342,2]
[365457389,1749681050326,-412.03581294,0.00019342,2]
[365457390,1749681050336,-490.0,0.00019342,2]
[365457391,1749681050345,-490.0,0.00019342,2]
[365457392,1749681050356,-490.0,0.00019342,2]
[365457393,1749681050367,-1045.94,0.00019342,2]
[365457394,1749681050376,-490.0,0.00019342,2]
[365457395,1749681050386,-490.0,0.00019342,2]
[365457396,1749681050395,-266.22099681,0.00019342,2]
[365457397,1749681050405,-490.0,0.00019342,2]
[365457398,1749681050414,-664.08,0.00019342,2]
[365457399,1749681050424,-569.23,0.00019342,2]
[365457400,1749681050437,-1109.77,0.00019342,2]
[365457401,1749681050448,-480.0,0.00019342,2]
[365457402,1749681050458,-490.0,0.00019342,2]
[365457403,1749681050468,-490.0,0.00019342,2]
[365457404,1749681050477,-490.0,0.00019342,2]
[365457405,1749681050487,-490.0,0.00019342,2]
[365457406,1749681050497,-490.0,0.00019342,2]
[365457407,1749681050507,-490.0,0.00019342,2]
[365457408,1749681050516,-490.0,0.00019342,2]
[365457409,1749681050526,-1027.39,0.00019342,2]
[365457410,1749681050536,-711.21,0.00019342,2]
[365457411,1749681050546,-490.0,0.00019342,2]
[365457412,1749681050556,-802.65,0.00019342,2]
[365457413,1749681050566,-490.0,0.00019342,2]
[365457414,1749681050576,-490.0,0.00019342,2]
[365457415,1749681050586,-574.1,0.00019342,2]
[365457416,1749681050596,-714.44,0.00019342,2]
[365457417,1749681050606,-170.6,0.00019342,2]
[365457418,1749681050615,-490.0,0.00019342,2]
[365457419,1749681050626,-490.0,0.00019342,2]
[365457420,1749681050636,-490.0,0.00019342,2]
[365457421,1749681050646,-802.13,0.00019342,2]
[365457422,1749681050656,-676.83,0.00019342,2]
[365457423,1749681050666,-490.0,0.00019342,2]
[365457424,1749681050676,-741.95,0.00019342,2]
[365457425,1749681050687,-490.0,0.00019342,2]
[365457426,1749681050700,-506.68,0.00019342,2]
[365457427,1749681050710,-1000.0,0.00019342,2]
[365457428,1749681050720,-595.18108307,0.00019342,2]
[365457429,1749681050730,-1639.27,0.00019342,2]
[365457430,1749681050740,-490.0,0.00019342,2]
[365457431,1749681050750,-688.28,0.00019342,2]
[365457432,1749681050760,-490.0,0.00019342,2]
[365457433,1749681050770,-490.0,0.00019342,2]
[365457434,1749681050780,-490.0,0.00019342,2]
[365457435,1749681050790,-683.16,0.00019342,2]
[365457436,1749681050799,-490.0,0.00019342,2]
[365457437,1749681050809,-727.68,0.00019342,2]
[365457438,1749681050818,-831.91,0.00019342,2]
[365457439,1749681050828,-490.0,0.00019342,2]
[365457440,1749681050838,-490.0,0.00019342,2]
[365457441,1749681050847,-490.0,0.00019342,2]
[365457442,1749681050857,-490.0,0.00019342,2]
[365457443,1749681050866,-490.0,0.00019342,2]
[365457444,1749681050877,-627.0,0.00019342,2]
[365457445,1749681050887,-549.26,0.00019342,2]
[365457446,1749681050897,-490.0,0.00019342,2]
[365457447,1749681050907,-490.0,0.00019342,2]
[365457448,1749681050917,-490.0,0.00019342,2]
[365457449,1749681050926,-480.0,0.00019342,2]
[365457450,1749681050937,-634.08,0.00019342,2]
[365457451,1749681050947,-490.0,0.00019342,2]
[365457452,1749681050957,-490.0,0.00019342,2]
[365457453,1749681050967,-480.0,0.00019342,2]
[365457454,1749681050977,-785.32,0.00019342,2]
[365457455,1749681050987,-549.18,0.00019342,2]
[365457456,1749681050996,-490.0,0.00019342,2]
[365457457,1749681051006,-490.0,0.00019342,2]
[365457458,1749681051016,-490.0,0.00019342,2]
[365457459,1749681051026,-490.0,0.00019342,2]
[365457460,1749681051036,-1067.72,0.00019342,2]
[365457461,1749681051047,-480.0,0.00019342,2]
[365457462,1749681051057,-490.0,0.00019342,2]
[365457463,1749681051068,-1091.48,0.00019342,2]
[365457464,1749681051078,-490.0,0.00019342,2]
[365457465,1749681051088,-490.0,0.00019342,2]
[365457466,1749681051098,-527.77,0.00019342,2]
[365457467,1749681051108,-490.0,0.00019342,2]
[365457468,1749681051117,-490.0,0.00019342,2]
[365457469,1749681051127,-3015.97,0.00019342,2]
[365457470,1749681051137,-765.91,0.00019342,2]
[365457471,1749681051147,-631.38,0.00019342,2]
[365457472,1749681051157,-711.29,0.00019342,2]
[365457473,1749681051167,-490.0,0.00019342,2]
[365457474,1749681051177,-606.94,0.00019342,2]
[365457475,1749681051187,-480.0,0.00019342,2]
[365457476,1749681051197,-490.0,0.00019342,2]
[365457477,1749681051435,-490.0,0.00019342,2]
[365457478,1749681051444,-1000.0,0.00019342,2]
[365457479,1749681051453,-490.0,0.00019342,2]
[365457480,1749681051463,-490.0,0.00019342,2]
[365457481,1749681051472,-24494.07027487,0.00019342,2]
[365457482,1749681051482,-860.284671,0.00019342,2]
[365457483,1749681051492,-2556.87,0.00019342,2]
[365457484,1749681051501,-490.0,0.00019342,2]
[365457485,1749681051511,-756.45,0.00019342,2]
[365457486,1749681051522,-420.0,0.00019342,2]
[365457487,1749681051531,-682.16,0.00019342,2]
[365457488,1749681051541,-667.62,0.00019342,2]
[365457489,1749681051551,-480.0,0.00019342,2]
[365457490,1749681051561,-1003.6,0.00019342,2]
[365457491,1749681051570,-725.13,0.00019342,2]
[365457492,1749681051580,-490.0,0.00019342,2]
[365457493,1749681051589,-490.0,0.00019342,2]
[365457494,1749681051599,-991.3,0.00019342,2]
[365457495,1749681051609,-644.68,0.00019342,2]
[365457496,1749681051618,-714.86,0.00019342,2]
[365457497,1749681051630,-769.78,0.00019342,2]
[365457498,1749681051640,-490.0,0.00019342,2]
[365457499,1749681051650,-1288.02,0.00019342,2]
[365457500,1749681051659,-3040.97,0.00019342,2]
[365457501,1749681051669,-490.0,0.00019342,2]
[365457502,1749681051679,-1041.13,0.00019342,2]
[365457503,1749681051689,-831.35,0.00019342,2]
[365457504,1749681051698,-645.9,0.00019342,2]
[365457505,1749681051708,-3039.27,0.00019342,2]
[365457506,1749681051718,-490.0,0.00019342,2]
[365457507,1749681051728,-490.0,0.00019342,2]
[365457508,1749681051738,-7683.51,0.00019342,2]
[365457509,1749681051748,-490.0,0.00019342,2]
[365457510,1749681051758,-748.07,0.00019342,2]
[365457511,1749681051767,-480.0,0.00019342,2]
[365457512,1749681051777,-1414.43,0.00019342,2]
[365457513,1749681051787,-793.8,0.00019342,2]
[365457514,1749681051796,-490.0,0.00019342,2]
[365457515,1749681051805,-480.0,0.00019342,2]
[365457516,1749681051814,-490.0,0.00019342,2]
[365457517,1749681051824,-852.43,0.00019342,2]
[365457518,1749681051834,-490.0,0.00019342,2]
[365457519,1749681051843,-490.0,0.00019342,2]
[365457520,1749681051853,-1711.26,0.00019342,2]
[365457521,1749681051863,-1775.86,0.00019342,2]
[365457522,1749681051873,-1484.9,0.00019342,2]
[365457523,1749681051884,-886.63,0.00019342,2]
[365457524,1749681051893,-553.95,0.00019342,2]
[365457525,1749681051902,-490.0,0.00019342,2]
[365457526,1749681051912,-490.0,0.00019342,2]
[365457527,1749681051921,-490.0,0.00019342,2]
[365457528,1749681051931,-719.87,0.00019342,2]
[365457529,1749681051941,-489.78113232,0.00019342,2]
[365457530,1749681051950,-490.0,0.00019342,2]
[365457531,1749681051959,-3435.38,0.00019342,2]
[365457532,1749681051969,-490.0,0.00019342,2]
[365457533,1749681051979,-1020.83,0.00019342,2]
[365457534,1749681051988,-637.51,0.00019342,2]
[365457535,1749681051998,-490.0,0.00019342,2]
[365457536,1749681052007,-490.0,0.00019342,2]
[365457537,1749681052017,-490.0,0.00019342,2]
[365457538,1749681052026,-490.0,0.00019342,2]
[365457539,1749681052036,-490.0,0.00019342,2]
[365457540,1749681052045,-490.0,0.00019342,2]
[365457541,1749681052055,-490.0,0.00019342,2]
[365457542,1749681052064,-3565.37,0.00019342,2]
[365457543,1749681052074,-490.0,0.00019342,2]
[365457544,1749681052084,-591.24,0.00019342,2]
[365457545,1749681052094,-490.0,0.00019342,2]
[365457546,1749681052103,-1777.51,0.00019342,2]
[365457547,1749681052112,-490.0,0.00019342,2]
[365457548,1749681052123,-490.0,0.00019342,2]
[365457549,1749681052134,-490.0,0.00019342,2]
[365457550,1749681052144,-679.41,0.00019342,2]
[365457551,1749681052153,-490.0,0.00019342,2]
[365457552,1749681052163,-1199.01,0.00019342,2]
[365457553,1749681052172,-1168.01,0.00019342,2]
[365457554,1749681052181,-587.65,0.00019342,2]
[365457555,1749681052191,-617.22,0.00019342,2]
[365457556,1749681052200,-490.0,0.00019342,2]
[365457557,1749681052210,-490.0,0.00019342,2]
[365457558,1749681052219,-1041.81,0.00019342,2]
[365457559,1749681052228,-490.0,0.00019342,2]
[365457560,1749681052239,-855.8,0.00019342,2]
[365457561,1749681052248,-490.0,0.00019342,2]
[365457562,1749681052257,-490.0,0.00019342,2]
[365457563,1749681052267,-2234.57,0.00019342,2]
[365457564,1749681052276,-683.01,0.00019342,2]
[365457565,1749681052285,-619.27,0.00019342,2]
[365457566,1749681052294,-5150.97,0.00019342,2]
[365457567,1749681052303,-245.71176165,0.00019342,2]
[365457568,1749681052312,-490.0,0.00019342,2]
[365457569,1749681052322,-850.37,0.00019342,2]
[365457570,1749681052331,-1497.1,0.00019342,2]
[365457571,1749681052341,-1059.59,0.00019342,2]
[365457572,1749681052352,-490.0,0.00019342,2]
[365457573,1749681052364,-321.01679462,0.00019342,2]
[365457574,1749681052374,-1397.52,0.00019342,2]
[365457575,1749681052384,-490.0,0.00019342,2]
[365457576,1749681052394,-548.84,0.00019342,2]
[365457577,1749681052405,-490.0,0.00019342,2]
[365457578,1749681052415,-828.39,0.00019342,2]
[365457579,1749681052424,-490.0,0.00019342,2]
[365457580,1749681052436,-490.0,0.00019342,2]
[365457581,1749681052445,-490.0,0.00019342,2]
[365457582,1749681052454,-1213.57,0.00019342,2]
[365457583,1749681052464,-490.0,0.00019342,2]
[365457584,1749681052473,-490.0,0.00019342,2]
[365457585,1749681052482,-490.0,0.00019342,2]
[365457586,1749681052491,-490.0,0.00019342,2]
[365457587,1749681052500,-490.0,0.00019342,2]
[365457588,1749681052510,-490.0,0.00019342,2]
[365457589,1749681052520,-565.48,0.00019342,2]
[365457590,1749681052529,-1132.46,0.00019342,2]
[365457591,1749681052538,-490.0,0.00019342,2]
[365457592,1749681052547,-490.0,0.00019342,2]
[365457593,1749681052557,-680.41,0.00019342,2]
[365457594,1749681052566,-490.0,0.00019342,2]
[365457595,1749681052576,-1500.61,0.00019342,2]
[365457596,1749681052585,-490.0,0.00019342,2]
[365457597,1749681052594,-490.0,0.00019342,2]
[365457598,1749681052603,-490.0,0.00019342,2]
[365457599,1749681052613,-480.0,0.00019342,2]
[365457600,1749681052622,-490.0,0.00019342,2]
[365457601,1749681052633,-490.0,0.00019342,2]
[365457602,1749681052643,-490.0,0.00019342,2]
[365457603,1749681052652,-490.0,0.00019342,2]
[365457604,1749681052662,-490.0,0.00019342,2]
[365457605,1749681052671,-490.0,0.00019342,2]
[365457606,1749681052680,-490.0,0.00019342,2]
[365457607,1749681052690,-1529.53,0.00019342,2]
[365457608,1749681052699,-884.29,0.00019342,2]
[365457609,1749681052708,-490.0,0.00019342,2]
[365457610,1749681052717,-490.0,0.00019342,2]
[365457611,1749681052727,-490.0,0.00019342,2]
[365457612,1749681052736,-490.0,0.00019342,2]
[365457613,1749681052745,-490.0,0.00019342,2]
[365457614,1749681052754,-480.0,0.00019342,2]
[365457615,1749681052763,-854.08,0.00019342,2]
[365457616,1749681052773,-1688.77,0.00019342,2]
[365457617,1749681052782,-11601.35,0.00019342,2]
[365457618,1749681052791,-1204.32,0.00019342,2]
[365457619,1749681052800,-490.0,0.00019342,2]
[365457620,1749681052810,-490.0,0.00019342,2]
[365457621,1749681052819,-490.0,0.00019342,2]
[365457622,1749681052828,-490.0,0.00019342,2]
[365457623,1749681052838,-490.0,0.00019342,2]
[365457624,1749681052847,-490.0,0.00019342,2]
[365457625,1749681052856,-490.0,0.00019342,2]
[365457626,1749681052865,-490.0,0.00019342,2]
[365457627,1749681052875,-490.0,0.00019342,2]
[365457628,1749681052886,-490.0,0.00019342,2]
[365457629,1749681052895,-439.43152586,0.00019342,2]
[365457630,1749681052905,-480.0,0.00019342,2]
[365457631,1749681052914,-7216.4,0.00019342,2]
[365457632,1749681052924,-968.99,0.00019342,2]
[365457633,1749681052933,-490.0,0.00019342,2]
[365457634,1749681052943,-1726.29,0.00019342,2]
[365457635,1749681052953,-490.0,0.00019342,2]
[365457636,1749681052962,-3362.35,0.00019342,2]
[365457637,1749681052972,-490.0,0.00019342,2]
[365457638,1749681052982,-480.0,0.00019342,2]